bitfinex/quotes_BTCUSD_20230906
["timestamp","ask_amount","ask_price","bid_price","bid_amount"]
[1694024738453,0.033,25653.0,25652.0,2.341998]
[1694024739601,0.033,25653.0,25652.0,3.05244327]
[1694024739805,0.033,25653.0,25652.0,3.83210927]
[1694024740012,0.033,25653.0,25652.0,3.81210927]
[1694024740211,0.033,25653.0,25652.0,3.424464]
[1694024740212,0.018,25653.0,25652.0,3.424464]
[1694024740426,0.93620643,25664.0,25655.0,0.08]
[1694024740427,0.0048,25664.0,25655.0,0.08]
[1694024740641,0.39144527,25664.0,25657.0,3.897469]
[1694024740844,0.09209443,25667.0,25658.0,0.15465811]
[1694024740845,0.0048,25663.0,25658.0,0.15465811]
[1694024741054,0.0048,25663.0,25659.0,3.117716]
[1694024741268,0.10562459,25668.0,25660.0,0.54130338]
[1694024741468,0.10562459,25668.0,25662.0,2.33805]
[1694024741469,0.40017543,25668.0,25662.0,2.33805]
[1694024741679,0.40017543,25668.0,25663.0,0.15465811]
[1694024741889,0.40017543,25668.0,25664.0,0.779291]
[1694024742125,0.40017543,25668.0,25665.0,0.15465811]
[1694024742542,0.40017543,25668.0,25664.0,0.779291]
[1694024742749,0.40017543,25668.0,25664.0,1.558582]
[1694024743169,0.42417543,25668.0,25664.0,1.560582]
[1694024743376,0.42417543,25668.0,25664.0,2.339883]
[1694024743590,0.42417543,25668.0,25664.0,1.560582]
[1694024743828,0.03753016,25668.0,25664.0,1.560582]
[1694024744059,0.03753016,25668.0,25664.0,2.339883]
[1694024744471,0.06053016,25668.0,25664.0,2.341883]
[1694024744905,0.06053016,25668.0,25664.0,1.562582]
[1694024745340,0.06053016,25668.0,25664.0,1.560582]
[1694024745341,0.26683825,25668.0,25664.0,1.560582]
[1694024745548,0.12862459,25668.0,25664.0,1.562582]
[1694024745757,0.12862459,25668.0,25664.0,2.341883]
[1694024745985,0.12862459,25668.0,25664.0,2.337883]
[1694024745986,0.24383825,25668.0,25664.0,2.337883]
[1694024746194,0.24583825,25668.0,25664.0,2.365883]
[1694024746404,0.10762459,25668.0,25664.0,2.365883]
[1694024746622,0.10762459,25668.0,25664.0,2.362883]
[1694024747459,0.10762459,25668.0,25664.0,2.387883]
[1694024747460,0.10962459,25668.0,25664.0,2.387883]
[1694024747666,0.01753016,25668.0,25664.0,2.387883]
[1694024747875,0.01753016,25668.0,25664.0,2.54254111]
[1694024748285,0.01753016,25668.0,25664.0,2.92918638]
[1694024748521,0.01753016,25668.0,25664.0,2.87452827]
[1694024748731,0.01253016,25668.0,25664.0,2.87452827]
[1694024748951,0.01253016,25668.0,25664.0,2.487883]
[1694024749365,0.01253016,25668.0,25664.0,0.05]
[1694024749366,0.38664527,25667.0,25664.0,0.05]
[1694024749613,0.61695336,25667.0,25664.0,0.05]
[1694024749814,0.09209443,25666.0,25664.0,0.05]
[1694024750024,0.4787397,25665.0,25664.0,0.05]
[1694024750207,0.4787397,25665.0,25664.0,0.025]
[1694024750463,0.09209443,25666.0,25664.0,2.362903]
[1694024750678,0.09209443,25667.0,25664.0,2.362903]
[1694024752198,0.11809443,25667.0,25664.0,2.364903]
[1694024752433,0.09409443,25667.0,25664.0,2.362903]
[1694024752686,0.09209443,25667.0,25664.0,2.337903]
[1694024752920,0.006,25667.0,25664.0,2.342903]
[1694024753146,0.10062459,25668.0,25664.0,2.341903]
[1694024753347,0.10062459,25668.0,25664.0,2.49456111]
[1694024753348,0.00853016,25668.0,25664.0,2.49456111]
[1694024753551,0.00853016,25668.0,25664.0,2.337903]
[1694024753811,0.10062459,25668.0,25664.0,2.341903]
[1694024754313,0.10062459,25668.0,25664.0,2.337903]
[1694024754529,0.10162459,25668.0,25665.0,0.38664527]
[1694024754802,0.00953016,25668.0,25666.0,3.116964]
[1694024755023,0.002,25667.0,25666.0,3.896205]
[1694024755234,0.00953016,25668.0,25666.0,3.896205]
[1694024755440,0.00953016,25668.0,25666.0,4.28285027]
[1694024755649,0.01053016,25668.0,25666.0,4.34285027]
[1694024755859,0.00853016,25668.0,25666.0,4.34285027]
[1694024756073,0.002,25667.0,25666.0,4.36685027]
[1694024756469,0.00853016,25668.0,25666.0,4.34285027]
[1694024756623,0.01053016,25668.0,25666.0,4.36285027]
[1694024756830,0.002,25667.0,25666.0,4.38785027]
[1694024757034,0.002,25667.0,25666.0,4.001205]
[1694024757630,0.002,25667.0,25666.0,0.045]
[1694024757836,0.002,25667.0,25666.0,0.025]
[1694024758256,0.004,25667.0,25666.0,0.049]
[1694024758465,0.002,25667.0,25666.0,1.583482]
[1694024758682,0.004,25667.0,25666.0,1.607482]
[1694024758891,0.004,25667.0,25666.0,2.386723]
[1694024759095,0.002,25667.0,25666.0,2.361723]
[1694024759311,0.004,25667.0,25666.0,2.386723]
[1694024759927,0.002,25667.0,25666.0,2.361723]
[1694024760136,0.004,25667.0,25666.0,2.386723]
[1694024762009,0.004,25667.0,25666.0,3.265964]
[1694024763036,0.004,25667.0,25666.0,4.12050927]
[1694024763463,0.004,25667.0,25666.0,4.19592927]
[1694024763682,0.00853016,25668.0,25667.0,0.5879]
[1694024763896,0.1979,25677.0,25669.0,0.06]
[1694024764118,0.0198,25678.0,25671.0,3.176314]
[1694024764334,0.158,25677.0,25672.0,0.15465811]
[1694024764542,0.158,25677.0,25673.0,3.116026]
[1694024764746,0.158,25677.0,25674.0,0.15465811]
[1694024764974,0.158,25677.0,25675.0,2.336901]
[1694024765180,0.2177,25678.0,25676.0,0.38664527]
[1694024765181,0.0198,25678.0,25676.0,0.38664527]
[1694024765396,0.0198,25678.0,25677.0,3.115628]
[1694024765630,0.0198,25678.0,25677.0,2.336721]
[1694024766915,0.0198,25685.0,25684.0,0.06]
[1694024767126,0.0198,25685.0,25684.0,3.69323411]
[1694024767814,0.0198,25685.0,25684.0,3.538576]
[1694024768030,0.0198,25685.0,25684.0,4.33312127]
[1694024768456,0.0208,25685.0,25684.0,4.35812127]
[1694024769309,0.0198,25685.0,25684.0,4.35812127]
[1694024769546,0.0198,25685.0,25684.0,4.38112127]
[1694024769759,0.0198,25685.0,25684.0,4.35612127]
[1694024770007,0.0198,25685.0,25684.0,4.38112127]
[1694024770216,0.0198,25685.0,25684.0,4.45120127]
[1694024770420,0.0198,25685.0,25684.0,4.38112127]
[1694024770630,0.0198,25685.0,25684.0,4.38312127]
[1694024770631,0.0208,25685.0,25684.0,4.38312127]
[1694024770849,0.0198,25685.0,25684.0,4.35812127]
[1694024771273,0.0208,25685.0,25684.0,4.40612127]
[1694024771482,0.0198,25685.0,25684.0,4.43442127]
[1694024771688,0.0208,25685.0,25684.0,4.45816127]
[1694024771900,0.0208,25685.0,25684.0,4.40612127]
[1694024772100,0.0198,25685.0,25684.0,4.38112127]
[1694024772306,0.0208,25685.0,25684.0,4.46374127]
[1694024772551,0.0208,25685.0,25684.0,4.48460127]
[1694024772759,0.0208,25685.0,25684.0,4.48280127]
[1694024772956,0.0208,25685.0,25684.0,4.48034127]
[1694024773167,0.0208,25685.0,25684.0,4.45510127]
[1694024773375,0.0208,25685.0,25684.0,4.45654127]
[1694024773584,0.0198,25685.0,25684.0,4.43256127]
[1694024773818,0.0198,25685.0,25684.0,4.43688127]
[1694024774032,0.0198,25686.0,25685.0,0.5879]
[1694024774243,0.0198,25686.0,25685.0,3.41021727]
[1694024774445,0.0198,25686.0,25685.0,3.38571727]
[1694024774668,0.0198,25686.0,25685.0,3.31053727]
[1694024775116,0.0198,25686.0,25685.0,3.33553727]
[1694024775338,0.0198,25686.0,25685.0,2.560792]
[1694024775548,0.0198,25686.0,25685.0,2.415792]
[1694024775752,0.0208,25686.0,25685.0,2.440792]
[1694024775977,0.0208,25686.0,25685.0,2.465792]
[1694024776185,0.0208,25686.0,25685.0,2.85243727]
[1694024776396,0.0208,25686.0,25685.0,3.26033727]
[1694024776598,0.0208,25686.0,25685.0,2.85243727]
[1694024776810,0.0208,25686.0,25685.0,2.465792]
[1694024777014,0.0198,25686.0,25685.0,2.440792]
[1694024777231,0.0198,25686.0,25685.0,2.82743727]
[1694024777440,0.0208,25686.0,25685.0,2.82743727]
[1694024777656,0.0198,25686.0,25685.0,2.82743727]
[1694024777869,0.0208,25686.0,25685.0,2.85243727]
[1694024778274,0.0208,25686.0,25685.0,2.82743727]
[1694024778485,0.0208,25686.0,25685.0,2.85243727]
[1694024778689,0.0198,25686.0,25685.0,2.82743727]
[1694024779099,0.0208,25686.0,25685.0,2.85243727]
[1694024780754,0.0198,25686.0,25685.0,2.82743727]
[1694024780959,0.0208,25686.0,25685.0,2.85243727]
[1694024781176,0.0208,25686.0,25685.0,3.28333727]
[1694024781408,0.0197,25688.0,25687.0,0.4679]
[1694024781595,0.0197,25688.0,25687.0,5.01436027]
[1694024781796,0.0197,25688.0,25687.0,5.08246027]
[1694024782005,0.0197,25688.0,25687.0,5.08180027]
[1694024782205,0.0197,25688.0,25687.0,5.08258027]
[1694024782416,0.0197,25688.0,25687.0,5.08336027]
[1694024782616,0.0197,25688.0,25687.0,5.10980027]
[1694024782872,0.0197,25688.0,25687.0,5.56400027]
[1694024783141,0.0197,25688.0,25687.0,5.48542027]
[1694024783384,0.0197,25688.0,25687.0,5.49514027]
[1694024783626,0.0197,25688.0,25687.0,5.49278027]
[1694024783841,0.0197,25688.0,25687.0,4.59222027]
[1694024784052,0.0197,25688.0,25687.0,3.58605727]
[1694024784255,0.0197,25688.0,25687.0,3.56105727]
[1694024784467,0.0197,25688.0,25687.0,3.58605727]
[1694024784695,0.0197,25688.0,25687.0,3.61105727]
[1694024784923,0.0197,25688.0,25687.0,3.58605727]
[1694024785131,0.0197,25688.0,25687.0,3.56105727]
[1694024785335,0.0197,25688.0,25687.0,3.58605727]
[1694024785544,0.0197,25688.0,25687.0,3.199412]
[1694024786151,0.0197,25688.0,25687.0,3.58605727]
[1694024786352,0.0197,25688.0,25687.0,3.74785727]
[1694024786607,0.0197,25688.0,25687.0,3.72285727]
[1694024786813,0.0197,25688.0,25687.0,5.02392027]
[1694024787014,0.0197,25688.0,25687.0,5.11752027]
[1694024787215,0.0197,25688.0,25687.0,5.12938027]
[1694024787386,0.0197,25688.0,25687.0,5.03736027]
[1694024787587,0.0197,25688.0,25687.0,4.52646027]
[1694024787803,0.0197,25688.0,25687.0,4.55146027]
[1694024788163,0.0197,25688.0,25687.0,4.58146027]
[1694024788352,0.0197,25688.0,25687.0,4.60646027]
[1694024788585,0.0197,25688.0,25687.0,3.77285727]
[1694024788785,0.0197,25688.0,25687.0,3.58605727]
[1694024788947,0.0197,25688.0,25687.0,3.61105727]
[1694024789143,0.0197,25688.0,25687.0,3.69105727]
[1694024789502,0.0197,25688.0,25687.0,4.26075727]
[1694024790168,0.0197,25688.0,25687.0,4.23575727]
[1694024790394,0.0197,25688.0,25687.0,4.33579727]
[1694024790580,0.0197,25688.0,25687.0,4.28375727]
[1694024790899,0.0197,25688.0,25687.0,4.25875727]
[1694024791099,0.0197,25688.0,25687.0,4.28375727]
[1694024791237,0.0197,25688.0,25687.0,4.24375727]
[1694024791434,0.0197,25688.0,25687.0,4.31341727]
[1694024791792,0.0197,25688.0,25687.0,4.30981727]
[1694024791988,0.0197,25689.0,25688.0,0.4679]
[1694024792157,0.0197,25689.0,25688.0,3.21326427]
[1694024792359,0.0197,25689.0,25688.0,3.19026427]
[1694024793010,0.0197,25689.0,25688.0,2.78236427]
[1694024793215,0.0197,25689.0,25688.0,2.395719]
[1694024793374,0.0197,25689.0,25688.0,2.335719]
[1694024793569,0.0197,25689.0,25688.0,2.360719]
[1694024793980,0.0197,25689.0,25688.0,2.385719]
[1694024794480,0.0197,25689.0,25688.0,2.335719]
[1694024794680,0.0197,25689.0,25688.0,2.360719]
[1694024794884,0.0197,25689.0,25688.0,2.385719]
[1694024795085,0.0197,25689.0,25688.0,2.360719]
[1694024795336,0.0197,25689.0,25688.0,2.385719]
[1694024795960,0.0446543,25689.0,25688.0,2.385719]
[1694024796143,0.0446543,25689.0,25688.0,2.385819]
[1694024796801,0.0446543,25689.0,25688.0,2.360819]
[1694024796981,0.0396543,25689.0,25688.0,2.360819]
[1694024797193,0.0396543,25689.0,25688.0,2.385819]
[1694024797538,0.0396543,25689.0,25688.0,2.360819]
[1694024797791,0.0396543,25689.0,25688.0,2.385819]
[1694024799161,0.0396543,25689.0,25688.0,2.360819]
[1694024799367,0.13174873,25689.0,25688.0,2.360819]
[1694024799614,0.13174873,25689.0,25688.0,1.607246]
[1694024800416,0.36264094,25689.0,25688.0,1.607246]
[1694024800633,0.37342388,25689.0,25688.0,0.0501]
[1694024800959,0.56412201,25687.0,25685.0,0.778659]
[1694024800964,0.56412201,25687.0,25685.0,1.55731]
[1694024801188,0.09269296,25686.0,25685.0,0.778651]
[1694024801388,0.09269296,25686.0,25685.0,1.557315]
[1694024802170,0.09269296,25686.0,25685.0,1.547315]
[1694024802171,0.13903944,25686.0,25685.0,1.547315]
[1694024802308,0.13903944,25686.0,25685.0,2.325979]
[1694024802510,0.56412201,25687.0,25685.0,2.325979]
[1694024802710,0.56412201,25687.0,25685.0,2.71262427]
[1694024803312,0.002,25686.0,25685.0,2.73662427]
[1694024803713,0.56512201,25687.0,25685.0,2.72562427]
[1694024803950,0.56412201,25687.0,25685.0,2.71262427]
[1694024804155,0.56612201,25687.0,25685.0,2.73762427]
[1694024804323,0.56812201,25687.0,25685.0,2.76162427]
[1694024804929,0.56812201,25687.0,25685.0,2.75162427]
[1694024805502,0.56612201,25687.0,25685.0,2.72662427]
[1694024805721,0.56812201,25687.0,25685.0,2.75162427]
[1694024805881,0.80034196,25687.0,25685.0,2.75162427]
[1694024806084,0.80034196,25687.0,25686.0,3.26460727]
[1694024806085,0.56812201,25687.0,25686.0,3.26460727]
[1694024806289,0.56812201,25687.0,25686.0,3.27114727]
[1694024806709,0.56812201,25687.0,25686.0,3.27162727]
[1694024806861,0.56612201,25687.0,25686.0,3.26640727]
[1694024807069,0.56412201,25687.0,25686.0,3.26094727]
[1694024807330,0.56812201,25687.0,25686.0,3.34002727]
[1694024807538,0.56812201,25687.0,25686.0,3.33522727]
[1694024807736,0.56812201,25687.0,25686.0,3.34650727]
[1694024807969,0.56812201,25687.0,25686.0,3.34836727]
[1694024808140,0.56612201,25687.0,25686.0,3.71314727]
[1694024808346,0.56812201,25687.0,25686.0,3.71046727]
[1694024808549,0.56812201,25687.0,25686.0,3.68456727]
[1694024808550,0.56612201,25687.0,25686.0,3.68456727]
[1694024808760,0.56612201,25687.0,25686.0,3.69258727]
[1694024808959,0.56812201,25687.0,25686.0,3.71088727]
[1694024809164,0.13254228,25689.0,25688.0,0.06]
[1694024809369,0.13254228,25689.0,25688.0,4.90921027]
[1694024809524,0.13933197,25690.0,25688.0,4.90921027]
[1694024809525,0.13933197,25690.0,25689.0,0.4679]
[1694024809721,0.13933197,25690.0,25689.0,3.19017427]
[1694024809924,0.13933197,25691.0,25690.0,0.06]
[1694024810124,0.32510793,25692.0,25690.0,2.78218427]
[1694024810390,0.23221995,25692.0,25691.0,0.38664527]
[1694024810579,0.23221995,25692.0,25691.0,3.37479127]
[1694024810580,0.1398331,25692.0,25691.0,3.37479127]
[1694024810990,0.1595331,25694.0,25691.0,3.47060727]
[1694024811227,0.1595331,25694.0,25693.0,0.06]
[1694024811425,0.1595331,25694.0,25693.0,4.33875527]
[1694024811803,0.0197,25694.0,25693.0,4.33875527]
[1694024812012,0.0197,25694.0,25693.0,4.32875527]
[1694024812221,0.1595331,25694.0,25693.0,4.32875527]
[1694024812582,0.1615331,25694.0,25693.0,4.35275527]
[1694024813205,0.0217,25694.0,25693.0,4.35275527]
[1694024813497,0.0217,25694.0,25693.0,4.96245527]
[1694024813775,0.0217,25694.0,25693.0,5.32141527]
[1694024813964,0.0237,25694.0,25693.0,5.34297527]
[1694024814167,0.0237,25694.0,25693.0,5.33649527]
[1694024814409,0.0237,25694.0,25693.0,5.33589527]
[1694024814614,0.1398331,25699.0,25697.0,0.05]
[1694024814821,0.1398331,25699.0,25698.0,3.11308]
[1694024815031,0.1595331,25700.0,25698.0,3.11308]
[1694024815246,0.34597292,25700.0,25698.0,3.26773811]
[1694024815448,0.34597292,25700.0,25698.0,3.32488]
[1694024815663,0.34597292,25700.0,25698.0,3.71152527]
[1694024815870,0.25233995,25701.0,25700.0,0.4579]
[1694024815871,0.02012,25701.0,25700.0,0.4579]
[1694024816077,0.02012,25701.0,25700.0,4.27384338]
[1694024816284,0.02012,25701.0,25700.0,4.11918527]
[1694024816491,0.29989883,25705.0,25703.0,0.05]
[1694024816703,0.15959883,25706.0,25704.0,4.59354838]
[1694024817114,0.0198,25706.0,25704.0,4.74930038]
[1694024817316,0.0198,25706.0,25704.0,3.268108]
[1694024817532,0.15959883,25706.0,25704.0,3.112356]
[1694024818147,0.0198,25706.0,25704.0,2.334267]
[1694024818357,0.0198,25706.0,25704.0,2.359267]
[1694024818986,0.0198,25706.0,25704.0,2.384267]
[1694024819405,0.0198,25706.0,25704.0,2.359367]
[1694024819812,0.0198,25706.0,25705.0,0.38664527]
[1694024820034,0.0198,25706.0,25705.0,2.72081927]
[1694024820881,0.0198,25706.0,25705.0,2.334174]
[1694024821095,0.0198,25706.0,25705.0,2.359174]
[1694024821949,0.0198,25706.0,25705.0,2.77081927]
[1694024822166,0.0198,25706.0,25705.0,3.54887727]
[1694024822598,0.0198,25706.0,25705.0,3.62687727]
[1694024823030,0.0198,25706.0,25705.0,4.05977727]
[1694024823447,0.0198,25706.0,25705.0,4.03477727]
[1694024823656,0.0198,25706.0,25705.0,4.10977727]
[1694024824088,0.0198,25706.0,25705.0,4.10777727]
[1694024824537,0.0198,25706.0,25705.0,4.13287727]
[1694024824753,0.0198,25706.0,25705.0,4.10787727]
[1694024825626,0.0198,25706.0,25705.0,4.13287727]
[1694024826046,0.0198,25706.0,25705.0,4.90593527]
[1694024826258,0.0198,25706.0,25705.0,5.39749527]
[1694024826502,0.0198,25706.0,25705.0,3.32729927]
[1694024826713,0.0198,25706.0,25705.0,2.14586127]
[1694024827361,0.0198,25706.0,25705.0,0.56474527]
[1694024827570,0.0198,25706.0,25705.0,2.92391927]
[1694024827998,0.0198,25706.0,25705.0,3.46861927]
[1694024828210,0.0198,25706.0,25705.0,3.10871927]
[1694024828421,0.0198,25706.0,25705.0,3.08571927]
[1694024828628,0.0198,25706.0,25705.0,3.46861927]
[1694024828839,0.0198,25706.0,25705.0,0.56474527]
[1694024829060,0.0198,25706.0,25705.0,0.58974527]
[1694024829278,0.0198,25706.0,25704.0,0.03092927]
[1694024829279,0.04,25705.0,25704.0,0.0001]
[1694024829503,0.17761422,25705.0,25704.0,0.0001]
[1694024829725,1.93993022,25705.0,25704.0,0.0001]
[1694024829947,0.2562,25705.0,25704.0,0.0001]
[1694024831307,0.2582,25705.0,25704.0,0.0251]
[1694024831753,0.2582,25705.0,25704.0,0.803189]
[1694024831754,0.1682,25705.0,25704.0,0.803189]
[1694024831975,0.1682,25705.0,25704.0,1.96792327]
[1694024832193,0.1682,25705.0,25704.0,2.74601227]
[1694024832410,0.1702,25705.0,25704.0,1.21483427]
[1694024832617,0.1702,25705.0,25704.0,0.0501]
[1694024833420,0.1652,25705.0,25704.0,0.0501]
[1694024834326,2.19796127,25705.0,25704.0,0.0501]
[1694024834537,2.97601927,25705.0,25704.0,0.0501]
[1694024835140,2.97201927,25705.0,25704.0,0.0001]
[1694024835368,2.97301927,25705.0,25704.0,0.0151]
[1694024835600,0.2522,25705.0,25704.0,0.0151]
[1694024836018,0.2532,25705.0,25704.0,0.0331]
[1694024836685,0.2522,25705.0,25704.0,0.0151]
[1694024836892,0.2522,25705.0,25704.0,0.0331]
[1694024836893,0.2532,25705.0,25704.0,0.0331]
[1694024837124,0.2522,25705.0,25704.0,0.0181]
[1694024837327,0.2632,25705.0,25704.0,0.0191]
[1694024837530,1.041258,25705.0,25704.0,0.0191]
[1694024837732,1.030258,25705.0,25704.0,0.0181]
[1694024837947,1.030258,25705.0,25704.0,0.0331]
[1694024837948,1.031258,25705.0,25704.0,0.0331]
[1694024838806,0.1632,25705.0,25704.0,0.0331]
[1694024839243,0.1632,25705.0,25704.0,0.811189]
[1694024839991,0.1632,25705.0,25704.0,0.0331]
[1694024840495,0.1632,25705.0,25704.0,0.811189]
[1694024841059,0.2532,25705.0,25704.0,0.0331]
[1694024841455,0.1632,25705.0,25704.0,0.0331]
[1694024841671,0.2532,25705.0,25704.0,0.0331]
[1694024843561,1.67779716,25705.0,25704.0,0.0331]
[1694024843754,0.01,25699.0,25694.0,0.05]
[1694024844142,0.01,25699.0,25694.0,0.82839]
[1694024844362,0.173,25699.0,25694.0,1.606781]
[1694024845262,0.174,25699.0,25694.0,1.619781]
[1694024845484,0.175,25699.0,25694.0,2.79981727]
[1694024845709,0.175,25699.0,25694.0,1.21303527]
[1694024845915,0.175,25699.0,25694.0,1.24303527]
[1694024846152,0.175,25699.0,25694.0,2.02142627]
[1694024846574,0.165,25699.0,25695.0,0.61430338]
[1694024846796,0.165,25699.0,25696.0,2.496775]
[1694024847009,0.165,25699.0,25697.0,0.81754527]
[1694024847223,0.165,25699.0,25698.0,0.77827]
[1694024847441,0.165,25699.0,25695.0,0.828355]
[1694024847442,0.164,25699.0,25695.0,0.828355]
[1694024847659,0.163,25699.0,25694.0,0.05]
[1694024847866,0.165,25699.0,25695.0,0.074]
[1694024848073,0.164,25699.0,25695.0,0.063]
[1694024848279,0.3055559,25699.0,25697.0,0.02]
[1694024848729,0.3055559,25699.0,25694.0,1.99341027]
[1694024848730,0.163,25699.0,25694.0,1.99341027]
[1694024849141,0.165,25699.0,25695.0,0.024]
[1694024849768,0.165,25699.0,25695.0,0.044]
[1694024850011,0.165,25699.0,25695.0,0.074]
[1694024850221,0.165,25699.0,25696.0,0.38664527]
[1694024850436,0.163,25699.0,25697.0,1.5796]
[1694024850660,0.165,25699.0,25698.0,0.38664527]
[1694024850927,0.165,25699.0,25698.0,1.16491527]
[1694024851158,0.165,25699.0,25698.0,2.72145527]
[1694024851800,0.165,25699.0,25698.0,3.20235527]
[1694024852217,0.165,25699.0,25698.0,2.04118527]
[1694024852432,0.166,25699.0,25698.0,2.06618527]
[1694024852839,0.166,25699.0,25698.0,0.1]
[1694024853675,0.164,25699.0,25698.0,0.075]
[1694024853891,0.163,25699.0,25698.0,0.025]
[1694024854307,0.164,25699.0,25698.0,0.025]
[1694024854512,0.164,25699.0,25698.0,0.1]
[1694024854722,0.164,25699.0,25698.0,0.075]
[1694024854936,0.164,25699.0,25698.0,1.63154]
[1694024855140,0.164,25699.0,25698.0,1.65654]
[1694024855353,0.164,25699.0,25698.0,2.43481]
[1694024855565,0.164,25699.0,25698.0,2.84445527]
[1694024855749,0.163,25699.0,25698.0,2.81945527]
[1694024856772,0.01,25703.0,25698.0,2.79445527]
[1694024856976,0.01,25703.0,25699.0,0.40964527]
[1694024857187,0.26019973,25704.0,25699.0,2.12074138]
[1694024857391,0.26019973,25704.0,25699.0,1.34251438]
[1694024857392,0.01,25703.0,25699.0,1.34251438]
[1694024857599,0.001,25699.0,25698.0,0.878257]
[1694024857807,0.001,25699.0,25698.0,0.025]
[1694024858020,0.01,25701.0,25698.0,0.025]
[1694024858247,0.01,25701.0,25699.0,0.025]
[1694024858471,0.788183,25701.0,25699.0,0.025]
[1694024858672,0.01,25701.0,25699.0,0.025]
[1694024858885,0.01,25700.0,25696.0,0.778323]
[1694024859095,0.001,25699.0,25698.0,0.025]
[1694024860528,0.001,25699.0,25698.0,0.80327]
[1694024860742,0.1667,25701.0,25698.0,1.55654]
[1694024860947,0.001,25699.0,25698.0,1.58154]
[1694024861155,0.001,25699.0,25698.0,0.025]
[1694024861361,0.01,25700.0,25696.0,1.556636]
[1694024861577,0.001,25699.0,25698.0,0.025]
[1694024861782,0.002,25699.0,25698.0,0.05]
[1694024862391,0.001,25699.0,25698.0,0.025]
[1694024862595,0.001,25699.0,25698.0,0.80327]
[1694024863436,0.001,25699.0,25698.0,2.76945527]
[1694024864268,0.002,25699.0,25698.0,2.79445527]
[1694024864502,0.002,25699.0,25698.0,0.05]
[1694024865533,0.002,25699.0,25698.0,0.82827]
[1694024865950,0.002,25699.0,25698.0,2.77145527]
[1694024866159,0.002,25699.0,25698.0,2.84445527]
[1694024867773,0.002,25699.0,25698.0,3.25235527]
[1694024870100,0.002,25699.0,25698.0,4.45662527]
[1694024870313,0.002,25699.0,25698.0,4.46292527]
[1694024870514,0.002,25699.0,25698.0,4.46430527]
[1694024870717,0.002,25699.0,25698.0,4.46448527]
[1694024870925,0.002,25699.0,25698.0,4.46358527]
[1694024871126,0.002,25699.0,25698.0,4.46394527]
[1694024871321,0.002,25699.0,25698.0,4.46448527]
[1694024871568,0.002,25699.0,25698.0,4.46442527]
[1694024871782,0.002,25699.0,25698.0,4.46430527]
[1694024871987,0.002,25699.0,25698.0,4.55670527]
[1694024872207,0.002,25699.0,25698.0,4.56336527]
[1694024872623,0.002,25699.0,25698.0,4.56642527]
[1694024872822,0.09328107,25703.0,25702.0,0.4579]
[1694024873031,0.09328107,25703.0,25702.0,5.22009027]
[1694024873670,0.09328107,25704.0,25703.0,0.4579]
[1694024873878,0.09328107,25704.0,25703.0,1.16754527]
[1694024874090,0.09328107,25704.0,25703.0,3.50190227]
[1694024874520,0.09328107,25705.0,25704.0,0.4579]
[1694024874749,0.09328107,25705.0,25704.0,3.66361227]
[1694024874750,0.23320197,25705.0,25704.0,3.66361227]
[1694024874963,0.09328107,25705.0,25704.0,3.66361227]
[1694024875213,0.3264821,25706.0,25705.0,0.4579]
[1694024875214,0.09328107,25706.0,25705.0,0.4579]
[1694024875422,0.156,25709.0,25708.0,0.4579]
[1694024875423,0.09322731,25709.0,25708.0,0.4579]
[1694024875624,0.1865612,25710.0,25709.0,0.05]
[1694024875845,0.32640154,25710.0,25709.0,1.605874]
[1694024876095,0.41950912,25710.0,25709.0,2.01551927]
[1694024876392,0.09317917,25710.0,25709.0,2.79345627]
[1694024876639,0.11287917,25711.0,25710.0,0.03]
[1694024876896,0.11287917,25711.0,25710.0,2.93516627]
[1694024876897,0.0197,25711.0,25710.0,2.93516627]
[1694024877421,0.0197,25711.0,25709.0,0.025]
[1694024877422,1.66863317,25711.0,25709.0,0.025]
[1694024877670,0.09313887,25710.0,25709.0,0.025]
[1694024878160,0.09313887,25710.0,25706.0,0.828025]
[1694024878359,0.39230762,25710.0,25707.0,0.38664527]
[1694024878563,0.09313887,25709.0,25707.0,0.38664527]
[1694024879049,1.65901887,25709.0,25703.0,2.169849]
[1694024879287,1.65901887,25709.0,25704.0,1.18772727]
[1694024879288,0.88107587,25709.0,25704.0,1.18772727]
[1694024879541,0.1594,25708.0,25704.0,1.18772727]
[1694024879818,0.1593,25708.0,25704.0,1.96581627]
[1694024880439,0.1593,25708.0,25707.0,0.025]
[1694024880669,0.1593,25708.0,25705.0,0.778054]
[1694024880879,0.1593,25708.0,25706.0,1.94266027]
[1694024881089,0.1593,25708.0,25706.0,1.16465027]
[1694024881300,0.1593,25708.0,25706.0,0.38664527]
[1694024881525,0.1593,25708.0,25707.0,0.025]
[1694024881738,0.0818963,25708.0,25707.0,0.025]
[1694024881919,0.0818963,25708.0,25706.0,0.38664527]
[1694024882123,0.0818963,25708.0,25706.0,0.41164527]
[1694024882341,0.0818963,25708.0,25706.0,1.18966927]
[1694024882752,0.0818963,25708.0,25706.0,1.96769727]
[1694024884014,0.0818963,25708.0,25707.0,0.025]
[1694024884221,0.0818963,25708.0,25707.0,0.777998]
[1694024884860,0.0818963,25708.0,25706.0,1.96769727]
[1694024885067,0.0818963,25708.0,25707.0,1.555996]
[1694024885274,0.0818963,25708.0,25707.0,2.358994]
[1694024885823,0.0818963,25708.0,25707.0,1.580996]
[1694024886228,0.10757832,25708.0,25707.0,1.580996]
[1694024886674,0.10757832,25708.0,25707.0,0.802998]
[1694024887083,0.10757832,25708.0,25707.0,0.05]
[1694024887719,0.10757832,25708.0,25707.0,0.827998]
[1694024889755,0.10757832,25708.0,25707.0,1.605996]
[1694024892266,0.02568202,25708.0,25707.0,2.77063927]
[1694024892464,0.02568202,25708.0,25707.0,3.20153927]
[1694024893903,0.02568202,25708.0,25707.0,3.23153927]
[1694024894083,0.02568202,25708.0,25707.0,3.25153927]
[1694024895168,0.02568202,25708.0,25707.0,3.41333927]
[1694024895391,0.02568202,25708.0,25707.0,4.69035727]
[1694024895612,0.0197,25711.0,25710.0,3.629528]